[Event "Titled Tuesday Blitz July 11 Early 2023"]
[White "Hilary46"]
[Black "Novikov, Evgenij"]
[BlackFideId "4125380"]
[WhiteElo "2750"]
[BlackElo "2486"]
[Result "1-0"]
[Round "4"]
[TimeControl "180+2"]
[Date "2023.07.11"]
[WhiteClock "0:00:18"]
[BlackClock "0:00:22"]
[Board "102"]

1. e4 {[%clk 0:02:56]}  c6 {[%clk 0:02:59]} 2. d4 {[%clk 0:02:56]}  d5 {[%clk 0:02:59]} 3. e5 {[%clk 0:02:57]}  Bf5 {[%clk 0:02:59]} 4. c4 {[%clk 0:02:57]}  e6 {[%clk 0:02:58]} 5. Nc3 {[%clk 0:02:58]}  Nd7 {[%clk 0:02:57]} 6. Nf3 {[%clk 0:02:59]}  h6 {[%clk 0:02:57]} 7. Be3 {[%clk 0:02:58]}  Ne7 {[%clk 0:02:54]} 8. c5 {[%clk 0:02:58]}  Bh7 {[%clk 0:02:49]} 9. Bd3 {[%clk 0:02:50]}  Bxd3 {[%clk 0:02:48]} 10. Qxd3 {[%clk 0:02:51]}  Nf5 {[%clk 0:02:48]} 11. O-O {[%clk 0:02:46]}  Be7 {[%clk 0:02:46]} 12. g4 {[%clk 0:02:40]}  Nxe3 {[%clk 0:02:44]} 13. fxe3 {[%clk 0:02:40]}  O-O {[%clk 0:02:42]} 14. Rf2 {[%clk 0:02:39]}  f5 {[%clk 0:02:30]} 15. exf6 {[%clk 0:02:37]}  Bxf6 {[%clk 0:02:29]} 16. Raf1 {[%clk 0:02:34]}  Qe7 {[%clk 0:02:14]} 17. e4 {[%clk 0:02:25]}  dxe4 {[%clk 0:01:58]} 18. Nxe4 {[%clk 0:02:26]}  e5 {[%clk 0:01:57]} 19. Nd6 {[%clk 0:02:12]}  exd4 {[%clk 0:01:52]} 20. Nxd4 {[%clk 0:02:13]}  Ne5 {[%clk 0:01:33]} 21. Qb3+ {[%clk 0:02:08]}  Kh7 {[%clk 0:01:24]} 22. Ne6 {[%clk 0:02:06]}  Nxg4 {[%clk 0:01:16]} 23. Nxf8+ {[%clk 0:02:04]}  Rxf8 {[%clk 0:01:17]} 24. Qc2+ {[%clk 0:01:56]}  g6 {[%clk 0:01:07]} 25. Re2 {[%clk 0:01:03]}  Bd4+ {[%clk 0:00:31]} 26. Kg2 {[%clk 0:01:04]}  Qg5 {[%clk 0:00:30]} 27. Rxf8 {[%clk 0:00:37]}  Ne3+ {[%clk 0:00:30]} 28. Kh1 {[%clk 0:00:18]}  Nxc2 {[%clk 0:00:29]} 29. Rf7+ {[%clk 0:00:19]}  Kg8 {[%clk 0:00:22]} 30. Re8# {[%clk 0:00:18]} 1-0


[Site "https://www.chess.com"]

[Event "Titled Tuesday Blitz July 11 Early 2023"]
[White "Shukhman, Anna"]
[Black "Herman, Daniel"]
[WhiteFideId "54180058"]
[BlackFideId "30935008"]
[WhiteElo "2596"]
[BlackElo "2444"]
[Result "1-0"]
[Round "4"]
[TimeControl "180+2"]
[Date "2023.07.11"]
[WhiteClock "0:00:16"]
[BlackClock "0:00:00"]
[Board "104"]

1. e4 {[%clk 0:03:00]}  Nf6 {[%clk 0:03:00]} 2. e5 {[%clk 0:03:01]}  Nd5 {[%clk 0:03:00]} 3. d4 {[%clk 0:03:01]}  d6 {[%clk 0:03:01]} 4. c4 {[%clk 0:03:02]}  Nb6 {[%clk 0:03:01]} 5. f4 {[%clk 0:03:02]}  dxe5 {[%clk 0:03:01]} 6. fxe5 {[%clk 0:03:03]}  Bf5 {[%clk 0:03:02]} 7. Nc3 {[%clk 0:03:02]}  e6 {[%clk 0:03:02]} 8. Be3 {[%clk 0:03:02]}  Bb4 {[%clk 0:02:58]} 9. Nf3 {[%clk 0:03:00]}  Nc6 {[%clk 0:02:52]} 10. Bd3 {[%clk 0:02:57]}  Bxd3 {[%clk 0:02:45]} 11. Qxd3 {[%clk 0:02:57]}  Na5 {[%clk 0:02:33]} 12. c5 {[%clk 0:02:50]}  Nbc4 {[%clk 0:02:15]} 13. O-O {[%clk 0:02:29]}  Bxc3 {[%clk 0:01:48]} 14. Qxc3 {[%clk 0:02:24]}  Nxe3 {[%clk 0:01:33]} 15. Qxe3 {[%clk 0:02:23]}  Nc6 {[%clk 0:01:27]} 16. d5 {[%clk 0:01:42]}  Qxd5 {[%clk 0:01:17]} 17. Rad1 {[%clk 0:01:42]}  Qc4 {[%clk 0:01:16]} 18. b3 {[%clk 0:01:39]}  Qg4 {[%clk 0:01:07]} 19. Ng5 {[%clk 0:01:25]}  O-O {[%clk 0:01:02]} 20. Rd7 {[%clk 0:01:23]}  Rad8 {[%clk 0:00:41]} 21. Rxc7 {[%clk 0:00:58]}  h6 {[%clk 0:00:35]} 22. Nf3 {[%clk 0:00:56]}  Qb4 {[%clk 0:00:17]} 23. Rc1 {[%clk 0:00:37]}  Nd4 {[%clk 0:00:17]} 24. Nxd4 {[%clk 0:00:36]}  Rxd4 {[%clk 0:00:16]} 25. Rxb7 {[%clk 0:00:34]}  Rd1+ {[%clk 0:00:09]} 26. Rxd1 {[%clk 0:00:33]}  Qxb7 {[%clk 0:00:09]} 27. Qd4 {[%clk 0:00:31]}  a5 {[%clk 0:00:06]} 28. Qd7 {[%clk 0:00:28]}  Qe4 {[%clk 0:00:06]} 29. Qd4 {[%clk 0:00:26]}  Qe2 {[%clk 0:00:03]} 30. a3 {[%clk 0:00:19]}  Rc8 {[%clk 0:00:03]} 31. b4 {[%clk 0:00:19]}  axb4 {[%clk 0:00:02]} 32. axb4 {[%clk 0:00:20]}  Qc2 {[%clk 0:00:03]} 33. Qd2 {[%clk 0:00:16]}  Qc4 {[%clk 0:00:02]} 34. Qd7 {[%clk 0:00:16]}  Rb8 {[%clk 0:00:00]} 35. c6 {[%clk 0:00:16]} 1-0


[Site "https://www.chess.com"]

[Event "Titled Tuesday Blitz July 11 Early 2023"]
[White "Palczert, Matyas"]
[Black "Avazkhonov, Alikhon"]
[WhiteFideId "784958"]
[BlackFideId "14208504"]
[WhiteElo "2584"]
[BlackElo "2436"]
[Result "0-1"]
[Round "4"]
[TimeControl "180+2"]
[Date "2023.07.11"]
[WhiteClock "0:00:00"]
[BlackClock "0:00:02"]
[Board "106"]

1. e4 {[%clk 0:03:00]}  c5 {[%clk 0:02:58]} 2. Nf3 {[%clk 0:03:00]}  d6 {[%clk 0:02:58]} 3. d4 {[%clk 0:03:00]}  cxd4 {[%clk 0:02:59]} 4. Nxd4 {[%clk 0:03:01]}  Nf6 {[%clk 0:03:00]} 5. Nc3 {[%clk 0:03:01]}  a6 {[%clk 0:02:56]} 6. Qf3 {[%clk 0:03:01]}  e5 {[%clk 0:02:55]} 7. Nf5 {[%clk 0:03:00]}  g6 {[%clk 0:02:36]} 8. Nh6 {[%clk 0:02:56]}  Be6 {[%clk 0:02:32]} 9. Bg5 {[%clk 0:02:53]}  Nbd7 {[%clk 0:02:28]} 10. h3 {[%clk 0:02:46]}  Rc8 {[%clk 0:02:25]} 11. Ng4 {[%clk 0:02:29]}  Be7 {[%clk 0:02:21]} 12. O-O-O {[%clk 0:02:25]}  Nxg4 {[%clk 0:02:15]} 13. Bxe7 {[%clk 0:02:22]}  Qxe7 {[%clk 0:02:13]} 14. hxg4 {[%clk 0:02:20]}  Qg5+ {[%clk 0:02:13]} 15. Rd2 {[%clk 0:02:00]}  Nf6 {[%clk 0:02:04]} 16. Qd1 {[%clk 0:01:28]}  Nxg4 {[%clk 0:01:41]} 17. Kb1 {[%clk 0:01:26]}  O-O {[%clk 0:01:38]} 18. f3 {[%clk 0:01:13]}  Ne3 {[%clk 0:01:37]} 19. Qe1 {[%clk 0:01:04]}  Bc4 {[%clk 0:01:30]} 20. Bxc4 {[%clk 0:00:48]}  Nxc4 {[%clk 0:01:31]} 21. Rd3 {[%clk 0:00:46]}  Rfd8 {[%clk 0:01:23]} 22. Nd5 {[%clk 0:00:44]}  b5 {[%clk 0:00:56]} 23. f4 {[%clk 0:00:40]}  exf4 {[%clk 0:00:49]} 24. Rdh3 {[%clk 0:00:21]}  h5 {[%clk 0:00:48]} 25. Rxh5 {[%clk 0:00:17]}  gxh5 {[%clk 0:00:46]} 26. Rxh5 {[%clk 0:00:16]}  Qg7 {[%clk 0:00:36]} 27. e5 {[%clk 0:00:08]}  Nxe5 {[%clk 0:00:30]} 28. Qh4 {[%clk 0:00:08]}  Ng6 {[%clk 0:00:25]} 29. Nf6+ {[%clk 0:00:05]}  Kf8 {[%clk 0:00:25]} 30. Qg5 {[%clk 0:00:04]}  Rc5 {[%clk 0:00:06]} 31. Nh7+ {[%clk 0:00:01]}  Ke8 {[%clk 0:00:06]} 32. Nf6+ {[%clk 0:00:01]}  Ke7 {[%clk 0:00:07]} 33. Nd5+ {[%clk 0:00:01]}  Kd7 {[%clk 0:00:07]} 34. Qf5+ {[%clk 0:00:01]}  Kc6 {[%clk 0:00:05]} 35. Nb4+ {[%clk 0:00:01]}  Kb6 {[%clk 0:00:05]} 36. Qe4 {[%clk 0:00:01]}  Rdc8 {[%clk 0:00:03]} 37. Rxc5 {[%clk 0:00:01]}  Rxc5 {[%clk 0:00:03]} 38. Qa8 {[%clk 0:00:01]}  Qe5 {[%clk 0:00:03]} 39. Qxa6+ {[%clk 0:00:01]}  Kc7 {[%clk 0:00:03]} 40. Qa7+ {[%clk 0:00:02]}  Kd8 {[%clk 0:00:03]} 41. Qb8+ {[%clk 0:00:03]}  Ke7 {[%clk 0:00:03]} 42. Qb7+ {[%clk 0:00:03]}  Kf6 {[%clk 0:00:04]} 43. Nd3 {[%clk 0:00:04]}  Qe3 {[%clk 0:00:02]} 44. a3 {[%clk 0:00:04]}  Qg1+ {[%clk 0:00:02]} 45. Ka2 {[%clk 0:00:04]}  Rxc2 {[%clk 0:00:01]} 46. Qxb5 {[%clk 0:00:03]}  Qd4 {[%clk 0:00:01]} 47. Qb3 {[%clk 0:00:03]}  Rd2 {[%clk 0:00:02]} 48. Nb4 {[%clk 0:00:03]}  Ne5 {[%clk 0:00:01]} 49. a4 {[%clk 0:00:03]}  Nd3 {[%clk 0:00:02]} 50. Nc2 {[%clk 0:00:03]}  Rxc2 {[%clk 0:00:01]} 51. Qxc2 {[%clk 0:00:00]}  Nb4+ {[%clk 0:00:02]} 0-1


[Site "https://www.chess.com"]

[Event "Titled Tuesday Blitz July 11 Early 2023"]
[White "JonSnowNW1"]
[Black "Kim, Sergey"]
[BlackFideId "13700570"]
[WhiteElo "2434"]
[BlackElo "2581"]
[Result "0-1"]
[Round "4"]
[TimeControl "180+2"]
[Date "2023.07.11"]
[WhiteClock "0:00:00"]
[BlackClock "0:01:51"]
[Board "107"]

1. c4 {[%clk 0:03:00]}  Nf6 {[%clk 0:02:59]} 2. Nc3 {[%clk 0:03:00]}  g6 {[%clk 0:02:59]} 3. g3 {[%clk 0:03:00]}  d6 {[%clk 0:03:00]} 4. Bg2 {[%clk 0:03:00]}  Bg7 {[%clk 0:03:00]} 5. Nf3 {[%clk 0:03:00]}  O-O {[%clk 0:03:00]} 6. O-O {[%clk 0:03:01]}  e5 {[%clk 0:03:00]} 7. d3 {[%clk 0:03:01]}  c6 {[%clk 0:03:00]} 8. Rb1 {[%clk 0:03:01]}  Re8 {[%clk 0:03:00]} 9. b4 {[%clk 0:02:21]}  d5 {[%clk 0:02:55]} 10. Bg5 {[%clk 0:01:47]}  h6 {[%clk 0:02:53]} 11. Bxf6 {[%clk 0:01:13]}  Bxf6 {[%clk 0:02:53]} 12. e4 {[%clk 0:01:09]}  dxc4 {[%clk 0:02:46]} 13. dxc4 {[%clk 0:01:09]}  Be6 {[%clk 0:02:46]} 14. Qe2 {[%clk 0:01:03]}  a5 {[%clk 0:02:41]} 15. Rfd1 {[%clk 0:01:00]}  Qe7 {[%clk 0:02:38]} 16. b5 {[%clk 0:00:57]}  Qc5 {[%clk 0:02:37]} 17. Nd2 {[%clk 0:00:50]}  Nd7 {[%clk 0:02:30]} 18. Na4 {[%clk 0:00:43]}  Qa3 {[%clk 0:02:16]} 19. bxc6 {[%clk 0:00:31]}  bxc6 {[%clk 0:02:16]} 20. Nb6 {[%clk 0:00:31]}  Nxb6 {[%clk 0:02:15]} 21. Rxb6 {[%clk 0:00:32]}  Qc5 {[%clk 0:02:14]} 22. Rb7 {[%clk 0:00:20]}  Red8 {[%clk 0:02:09]} 23. Bf1 {[%clk 0:00:20]}  h5 {[%clk 0:01:59]} 24. Nb3 {[%clk 0:00:00]}  Qa3 {[%clk 0:01:51]} 0-1


[Site "https://www.chess.com"]

[Event "Titled Tuesday Blitz July 11 Early 2023"]
[White "whiteglovethief"]
[Black "Vovk, Orest"]
[BlackFideId "14113490"]
[WhiteElo "2420"]
[BlackElo "2561"]
[Result "1-0"]
[Round "4"]
[TimeControl "180+2"]
[Date "2023.07.11"]
[WhiteClock "0:00:14"]
[BlackClock "0:00:00"]
[Board "109"]

1. d4 {[%clk 0:03:00]}  h6 {[%clk 0:02:59]} 2. e4 {[%clk 0:02:58]}  g5 {[%clk 0:02:59]} 3. Nc3 {[%clk 0:02:58]}  Bg7 {[%clk 0:02:58]} 4. f4 {[%clk 0:02:58]}  c5 {[%clk 0:02:58]} 5. dxc5 {[%clk 0:02:56]}  Bxc3+ {[%clk 0:02:57]} 6. bxc3 {[%clk 0:02:56]}  Nc6 {[%clk 0:02:56]} 7. fxg5 {[%clk 0:02:54]}  hxg5 {[%clk 0:02:55]} 8. Bxg5 {[%clk 0:02:52]}  Qa5 {[%clk 0:02:55]} 9. Qd2 {[%clk 0:02:44]}  Qxc5 {[%clk 0:02:53]} 10. Nf3 {[%clk 0:02:43]}  d6 {[%clk 0:02:52]} 11. Rb1 {[%clk 0:02:38]}  a6 {[%clk 0:02:51]} 12. Be2 {[%clk 0:02:36]}  b5 {[%clk 0:02:44]} 13. Be3 {[%clk 0:02:31]}  Qa3 {[%clk 0:02:25]} 14. O-O {[%clk 0:02:30]}  Nf6 {[%clk 0:02:20]} 15. Rb3 {[%clk 0:02:20]}  Qa4 {[%clk 0:02:11]} 16. e5 {[%clk 0:02:07]}  dxe5 {[%clk 0:01:53]} 17. c4 {[%clk 0:02:03]}  bxc4 {[%clk 0:01:41]} 18. Rb6 {[%clk 0:01:48]}  Be6 {[%clk 0:00:58]} 19. Ng5 {[%clk 0:01:36]}  Rd8 {[%clk 0:00:48]} 20. Qc1 {[%clk 0:01:20]}  Nd5 {[%clk 0:00:32]} 21. Nxe6 {[%clk 0:01:17]}  fxe6 {[%clk 0:00:32]} 22. Rb7 {[%clk 0:01:15]}  Rd7 {[%clk 0:00:17]} 23. Rb1 {[%clk 0:01:04]}  Nc3 {[%clk 0:00:10]} 24. Bf3 {[%clk 0:01:01]}  Nxb1 {[%clk 0:00:08]} 25. Qxb1 {[%clk 0:01:02]}  Nd4 {[%clk 0:00:08]} 26. Bxd4 {[%clk 0:00:52]}  exd4 {[%clk 0:00:07]} 27. Qb6 {[%clk 0:00:40]}  Qb5 {[%clk 0:00:04]} 28. Qxe6 {[%clk 0:00:16]}  Kd8 {[%clk 0:00:00]} 29. Bc6 {[%clk 0:00:14]} 1-0


[Site "https://www.chess.com"]

[Event "Titled Tuesday Blitz July 11 Early 2023"]
[White "Rosh Jain"]
[Black "Mattheii"]
[WhiteFideId "25789465"]
[WhiteElo "2381"]
[BlackElo "2543"]
[Result "1-0"]
[Round "4"]
[TimeControl "180+2"]
[Date "2023.07.11"]
[WhiteClock "0:01:43"]
[BlackClock "0:01:30"]
[Board "112"]

1. e4 {[%clk 0:02:55]}  c5 {[%clk 0:02:58]} 2. Nc3 {[%clk 0:02:55]}  Nc6 {[%clk 0:02:58]} 3. f4 {[%clk 0:02:54]}  g6 {[%clk 0:02:58]} 4. Nf3 {[%clk 0:02:55]}  Bg7 {[%clk 0:02:58]} 5. a4 {[%clk 0:02:55]}  e6 {[%clk 0:02:56]} 6. Bb5 {[%clk 0:02:53]}  Nd4 {[%clk 0:02:55]} 7. O-O {[%clk 0:02:50]}  a6 {[%clk 0:02:48]} 8. Bc4 {[%clk 0:02:50]}  Ne7 {[%clk 0:02:47]} 9. e5 {[%clk 0:02:50]}  d5 {[%clk 0:02:38]} 10. exd6 {[%clk 0:02:49]}  Qxd6 {[%clk 0:02:36]} 11. d3 {[%clk 0:02:50]}  O-O {[%clk 0:02:35]} 12. Be3 {[%clk 0:02:48]}  Nec6 {[%clk 0:02:33]} 13. Ne4 {[%clk 0:02:48]}  Qe7 {[%clk 0:02:33]} 14. c3 {[%clk 0:02:47]}  Nxf3+ {[%clk 0:02:23]} 15. Qxf3 {[%clk 0:02:48]}  b6 {[%clk 0:02:24]} 16. Nxc5 {[%clk 0:02:38]}  bxc5 {[%clk 0:02:25]} 17. Qxc6 {[%clk 0:02:37]}  Bb7 {[%clk 0:02:25]} 18. Qxc5 {[%clk 0:02:37]}  Qxc5 {[%clk 0:02:24]} 19. Bxc5 {[%clk 0:02:38]}  Rfd8 {[%clk 0:02:25]} 20. d4 {[%clk 0:02:37]}  Rac8 {[%clk 0:02:25]} 21. Bb3 {[%clk 0:02:33]}  Bc6 {[%clk 0:02:16]} 22. a5 {[%clk 0:02:32]}  Rb8 {[%clk 0:02:16]} 23. Bb6 {[%clk 0:02:31]}  Rd7 {[%clk 0:02:17]} 24. Bc4 {[%clk 0:02:29]}  Bb7 {[%clk 0:02:17]} 25. Rac1 {[%clk 0:02:26]}  Bf8 {[%clk 0:02:17]} 26. g3 {[%clk 0:02:26]}  Bd6 {[%clk 0:02:18]} 27. b4 {[%clk 0:02:25]}  Bc7 {[%clk 0:02:16]} 28. Bc5 {[%clk 0:02:19]}  Bd6 {[%clk 0:02:12]} 29. Bxd6 {[%clk 0:02:18]}  Rxd6 {[%clk 0:02:12]} 30. Bb3 {[%clk 0:02:17]}  Rc8 {[%clk 0:02:12]} 31. Rfd1 {[%clk 0:02:13]}  Bf3 {[%clk 0:02:08]} 32. Rd2 {[%clk 0:02:13]}  Rcd8 {[%clk 0:02:06]} 33. Kf2 {[%clk 0:02:12]}  Bb7 {[%clk 0:02:05]} 34. Ke3 {[%clk 0:02:12]}  f6 {[%clk 0:02:05]} 35. Kd3 {[%clk 0:02:08]}  Kg7 {[%clk 0:02:04]} 36. Re2 {[%clk 0:02:08]}  Re8 {[%clk 0:01:55]} 37. Rce1 {[%clk 0:02:07]}  Bc8 {[%clk 0:01:55]} 38. Kc2 {[%clk 0:01:55]}  Bd7 {[%clk 0:01:54]} 39. d5 {[%clk 0:01:55]}  e5 {[%clk 0:01:49]} 40. fxe5 {[%clk 0:01:54]}  fxe5 {[%clk 0:01:50]} 41. Rxe5 {[%clk 0:01:55]}  Rf8 {[%clk 0:01:51]} 42. Re7+ {[%clk 0:01:55]}  Kh6 {[%clk 0:01:51]} 43. R1e2 {[%clk 0:01:53]}  Bg4 {[%clk 0:01:51]} 44. Rd2 {[%clk 0:01:52]}  Rf1 {[%clk 0:01:49]} 45. c4 {[%clk 0:01:52]}  Rdf6 {[%clk 0:01:44]} 46. d6 {[%clk 0:01:51]}  Bf5+ {[%clk 0:01:38]} 47. Kc3 {[%clk 0:01:46]}  Rc1+ {[%clk 0:01:37]} 48. Kb2 {[%clk 0:01:43]}  Rb1+ {[%clk 0:01:30]} 49. Ka2 {[%clk 0:01:43]} 1-0


[Site "https://www.chess.com"]

[Event "Titled Tuesday Blitz July 11 Early 2023"]
[White "Fiorito, Francisco"]
[Black "Skuhala, Barbara"]
[WhiteFideId "180165"]
[BlackFideId "14605465"]
[WhiteElo "2525"]
[BlackElo "2341"]
[Result "1-0"]
[Round "4"]
[TimeControl "180+2"]
[Date "2023.07.11"]
[WhiteClock "0:00:44"]
[BlackClock "0:00:13"]
[Board "114"]

1. d4 {[%clk 0:03:00]}  Nf6 {[%clk 0:02:59]} 2. Nc3 {[%clk 0:02:59]}  d5 {[%clk 0:02:58]} 3. Bf4 {[%clk 0:02:57]}  e6 {[%clk 0:02:58]} 4. Nb5 {[%clk 0:02:57]}  Bd6 {[%clk 0:02:53]} 5. Nxd6+ {[%clk 0:02:55]}  cxd6 {[%clk 0:02:53]} 6. e3 {[%clk 0:02:56]}  Nc6 {[%clk 0:02:54]} 7. c3 {[%clk 0:02:55]}  e5 {[%clk 0:02:53]} 8. Bg3 {[%clk 0:02:52]}  O-O {[%clk 0:02:53]} 9. Nf3 {[%clk 0:02:49]}  Re8 {[%clk 0:02:53]} 10. Be2 {[%clk 0:02:46]}  Bf5 {[%clk 0:02:49]} 11. O-O {[%clk 0:02:45]}  Bg6 {[%clk 0:02:49]} 12. Qb3 {[%clk 0:02:42]}  Qb6 {[%clk 0:02:45]} 13. Qa3 {[%clk 0:02:41]}  Rad8 {[%clk 0:02:39]} 14. Rad1 {[%clk 0:02:38]}  e4 {[%clk 0:02:38]} 15. Nd2 {[%clk 0:02:35]}  Nb8 {[%clk 0:02:26]} 16. c4 {[%clk 0:02:33]}  Qa6 {[%clk 0:02:19]} 17. Qb3 {[%clk 0:02:25]}  Qb6 {[%clk 0:02:17]} 18. Qxb6 {[%clk 0:02:17]}  axb6 {[%clk 0:02:17]} 19. cxd5 {[%clk 0:02:18]}  Nxd5 {[%clk 0:02:16]} 20. Nc4 {[%clk 0:02:19]}  Re6 {[%clk 0:02:09]} 21. Rc1 {[%clk 0:02:16]}  Nc6 {[%clk 0:01:56]} 22. a3 {[%clk 0:02:14]}  Kf8 {[%clk 0:01:51]} 23. Nd2 {[%clk 0:02:13]}  Nde7 {[%clk 0:01:46]} 24. Bc4 {[%clk 0:02:12]}  d5 {[%clk 0:01:46]} 25. Ba2 {[%clk 0:02:09]}  Nc8 {[%clk 0:01:26]} 26. Rc2 {[%clk 0:02:03]}  f5 {[%clk 0:01:23]} 27. h4 {[%clk 0:02:01]}  Bf7 {[%clk 0:01:20]} 28. Rfc1 {[%clk 0:01:59]}  Ree8 {[%clk 0:01:20]} 29. Nb1 {[%clk 0:01:59]}  h6 {[%clk 0:01:14]} 30. Bf4 {[%clk 0:01:57]}  Ke7 {[%clk 0:01:07]} 31. Nc3 {[%clk 0:01:57]}  Be6 {[%clk 0:01:03]} 32. b4 {[%clk 0:01:47]}  Kf6 {[%clk 0:00:59]} 33. b5 {[%clk 0:01:40]}  Na5 {[%clk 0:00:59]} 34. Ne2 {[%clk 0:01:40]}  Ne7 {[%clk 0:00:54]} 35. Be5+ {[%clk 0:01:39]}  Kf7 {[%clk 0:00:54]} 36. h5 {[%clk 0:01:40]}  Rc8 {[%clk 0:00:48]} 37. Nf4 {[%clk 0:01:39]}  Rxc2 {[%clk 0:00:45]} 38. Rxc2 {[%clk 0:01:39]}  Rd8 {[%clk 0:00:24]} 39. Rc7 {[%clk 0:01:32]}  Rd7 {[%clk 0:00:19]} 40. Rxd7 {[%clk 0:01:08]}  Bxd7 {[%clk 0:00:19]} 41. Bxd5+ {[%clk 0:01:06]}  Nxd5 {[%clk 0:00:19]} 42. Nxd5 {[%clk 0:01:07]}  Bxb5 {[%clk 0:00:19]} 43. Nxb6 {[%clk 0:01:07]}  Be2 {[%clk 0:00:19]} 44. d5 {[%clk 0:00:54]}  Bxh5 {[%clk 0:00:18]} 45. d6 {[%clk 0:00:55]}  Nc6 {[%clk 0:00:19]} 46. Bc3 {[%clk 0:00:52]}  g5 {[%clk 0:00:18]} 47. Kf1 {[%clk 0:00:51]}  Ke6 {[%clk 0:00:18]} 48. d7 {[%clk 0:00:50]}  Ke7 {[%clk 0:00:17]} 49. Bb4+ {[%clk 0:00:43]}  Kd8 {[%clk 0:00:17]} 50. Bc3 {[%clk 0:00:44]}  Nb8 {[%clk 0:00:13]} 51. Bf6+ {[%clk 0:00:44]} 1-0


[Site "https://www.chess.com"]

[Event "Titled Tuesday Blitz July 11 Early 2023"]
[White "Santos Flores, Alberto"]
[Black "Peiris, T G M"]
[WhiteFideId "3601234"]
[BlackFideId "9901310"]
[WhiteElo "2500"]
[BlackElo "2229"]
[Result "1-0"]
[Round "4"]
[TimeControl "180+2"]
[Date "2023.07.11"]
[WhiteClock "0:00:30"]
[BlackClock "0:00:35"]
[Board "118"]

1. e4 {[%clk 0:02:41]}  c5 {[%clk 0:02:59]} 2. Nf3 {[%clk 0:02:41]}  d6 {[%clk 0:02:59]} 3. Bb5+ {[%clk 0:02:41]}  Bd7 {[%clk 0:02:58]} 4. Bxd7+ {[%clk 0:02:40]}  Nxd7 {[%clk 0:02:59]} 5. c4 {[%clk 0:02:39]}  e5 {[%clk 0:02:59]} 6. Nc3 {[%clk 0:02:39]}  g6 {[%clk 0:02:58]} 7. h4 {[%clk 0:02:34]}  h5 {[%clk 0:02:56]} 8. d3 {[%clk 0:02:34]}  Bg7 {[%clk 0:02:56]} 9. Bg5 {[%clk 0:02:29]}  Ne7 {[%clk 0:02:55]} 10. Nd5 {[%clk 0:02:27]}  f6 {[%clk 0:02:56]} 11. Be3 {[%clk 0:02:25]}  Nxd5 {[%clk 0:02:54]} 12. cxd5 {[%clk 0:02:25]}  O-O {[%clk 0:02:54]} 13. Qd2 {[%clk 0:02:25]}  Kh7 {[%clk 0:02:51]} 14. O-O {[%clk 0:02:02]}  Rc8 {[%clk 0:02:46]} 15. a3 {[%clk 0:02:01]}  a6 {[%clk 0:02:40]} 16. b4 {[%clk 0:01:59]}  b5 {[%clk 0:02:34]} 17. bxc5 {[%clk 0:01:35]}  dxc5 {[%clk 0:02:27]} 18. a4 {[%clk 0:01:35]}  Nb6 {[%clk 0:02:20]} 19. axb5 {[%clk 0:01:33]}  axb5 {[%clk 0:02:21]} 20. Rfb1 {[%clk 0:01:31]}  Qd7 {[%clk 0:02:20]} 21. Qa5 {[%clk 0:01:28]}  Nxd5 {[%clk 0:01:41]} 22. exd5 {[%clk 0:01:26]}  Qxd5 {[%clk 0:01:42]} 23. Qxb5 {[%clk 0:01:24]}  Rfd8 {[%clk 0:01:40]} 24. Rc1 {[%clk 0:01:18]}  Qxd3 {[%clk 0:01:08]} 25. Qxd3 {[%clk 0:01:16]}  Rxd3 {[%clk 0:01:09]} 26. Rxc5 {[%clk 0:01:15]}  Rxc5 {[%clk 0:01:08]} 27. Bxc5 {[%clk 0:01:16]}  e4 {[%clk 0:01:09]} 28. Nd4 {[%clk 0:01:09]}  f5 {[%clk 0:01:05]} 29. Ra7 {[%clk 0:01:08]}  Kg8 {[%clk 0:01:02]} 30. Ne6 {[%clk 0:01:03]}  Be5 {[%clk 0:01:02]} 31. g3 {[%clk 0:01:03]}  Rc3 {[%clk 0:00:50]} 32. Be3 {[%clk 0:01:00]}  Rc6 {[%clk 0:00:48]} 33. Ra8+ {[%clk 0:00:44]}  Kh7 {[%clk 0:00:46]} 34. Ng5+ {[%clk 0:00:43]}  Kg7 {[%clk 0:00:45]} 35. Ra7+ {[%clk 0:00:42]}  Kg8 {[%clk 0:00:46]} 36. Bf4 {[%clk 0:00:37]}  Bd4 {[%clk 0:00:45]} 37. Ra8+ {[%clk 0:00:36]}  Kg7 {[%clk 0:00:44]} 38. Be3 {[%clk 0:00:35]}  Be5 {[%clk 0:00:44]} 39. Re8 {[%clk 0:00:34]}  Bf6 {[%clk 0:00:43]} 40. Kg2 {[%clk 0:00:31]}  Ra6 {[%clk 0:00:42]} 41. Re6 {[%clk 0:00:30]}  Ba1 {[%clk 0:00:35]} 42. Rxa6 {[%clk 0:00:30]} 1-0


[Site "https://www.chess.com"]

[Event "Titled Tuesday Blitz July 11 Early 2023"]
[White "Ishowmoves57"]
[Black "Belov, Alexei"]
[BlackFideId "4128206"]
[WhiteElo "2137"]
[BlackElo "2488"]
[Result "0-1"]
[Round "4"]
[TimeControl "180+2"]
[Date "2023.07.11"]
[WhiteClock "0:00:13"]
[BlackClock "0:00:40"]
[Board "120"]

1. e4 {[%clk 0:02:59]}  e6 {[%clk 0:03:00]} 2. d4 {[%clk 0:02:58]}  d5 {[%clk 0:03:01]} 3. Bd3 {[%clk 0:02:58]}  dxe4 {[%clk 0:03:00]} 4. Bxe4 {[%clk 0:02:58]}  Nf6 {[%clk 0:03:01]} 5. Bd3 {[%clk 0:02:57]}  c5 {[%clk 0:02:55]} 6. Nf3 {[%clk 0:02:50]}  Nc6 {[%clk 0:02:53]} 7. Be3 {[%clk 0:02:41]}  Nd5 {[%clk 0:02:46]} 8. Bg5 {[%clk 0:02:38]}  f6 {[%clk 0:02:37]} 9. Ne5 {[%clk 0:02:06]}  Nxe5 {[%clk 0:02:27]} 10. dxe5 {[%clk 0:02:02]}  fxg5 {[%clk 0:02:27]} 11. Qh5+ {[%clk 0:01:55]}  Kd7 {[%clk 0:02:27]} 12. Nc3 {[%clk 0:01:42]}  Nxc3 {[%clk 0:02:07]} 13. bxc3 {[%clk 0:01:41]}  Kc7 {[%clk 0:02:04]} 14. Rd1 {[%clk 0:01:34]}  Qe7 {[%clk 0:01:45]} 15. Bb5 {[%clk 0:01:07]}  a6 {[%clk 0:01:42]} 16. Be8 {[%clk 0:01:07]}  g6 {[%clk 0:01:33]} 17. Bxg6 {[%clk 0:01:05]}  Bg7 {[%clk 0:01:33]} 18. Be4 {[%clk 0:00:58]}  Bd7 {[%clk 0:01:30]} 19. O-O {[%clk 0:00:50]}  Bc6 {[%clk 0:01:25]} 20. Bxc6 {[%clk 0:00:35]}  bxc6 {[%clk 0:01:25]} 21. Rd6 {[%clk 0:00:30]}  Bxe5 {[%clk 0:01:22]} 22. Rd3 {[%clk 0:00:27]}  Rhd8 {[%clk 0:01:19]} 23. Re3 {[%clk 0:00:26]}  Bf4 {[%clk 0:01:17]} 24. Re4 {[%clk 0:00:25]}  Rd5 {[%clk 0:00:53]} 25. g3 {[%clk 0:00:20]}  Bd6 {[%clk 0:00:53]} 26. Qe2 {[%clk 0:00:17]}  e5 {[%clk 0:00:49]} 27. c4 {[%clk 0:00:17]}  Rd4 {[%clk 0:00:49]} 28. Re1 {[%clk 0:00:11]}  Rf8 {[%clk 0:00:45]} 29. Rxd4 {[%clk 0:00:11]}  cxd4 {[%clk 0:00:45]} 30. f4 {[%clk 0:00:12]}  gxf4 {[%clk 0:00:44]} 31. gxf4 {[%clk 0:00:12]}  Rxf4 {[%clk 0:00:44]} 32. Kh1 {[%clk 0:00:12]}  e4 {[%clk 0:00:41]} 33. Qd2 {[%clk 0:00:13]}  e3 {[%clk 0:00:39]} 34. Qa5+ {[%clk 0:00:13]}  Kd7 {[%clk 0:00:40]} 35. Qxa6 {[%clk 0:00:12]}  Qe4+ {[%clk 0:00:40]} 36. Kg1 {[%clk 0:00:12]}  Rg4+ {[%clk 0:00:40]} 37. Kf1 {[%clk 0:00:13]}  Qg2# {[%clk 0:00:40]} 0-1


[Site "https://www.chess.com"]